[Event "Hungary Olimpic Hopes 2022"]
[Site "Tapolca"]
[Date "2022.06.24"]
[Round "4.12"]
[White "Kasa, Barnabas"]
[Black "Karacsonyi, Bank"]
[Result "0-1"]
[ECO "C52"]
[WhiteElo "1323"]
[BlackElo "1812"]
[Annotator "NA RC"]
[PlyCount "121"]
[EventDate "2022.06.23"]
[EventType "swiss"]
[EventCountry "HUN"]
[SourceTitle "playchess.com"]
[Source "ChessBase"]
[SourceQuality "1"]
[TimeControl "5400+30"]

1. e4 {[%emt 0:00:04]} e5 {[%emt 0:00:03]} 2. Nf3 {[%emt 0:00:24]} Nc6 {[%emt 0:00:09]} 3. Bc4 {[%emt 0:00:36]} Bc5 {[%emt 0:00:05]} 4. b4 {[%emt 0:00:17]} Bxb4 {[%emt 0:00:05]} 5. c3 {[%emt 0:00:27]} Ba5 {[%emt 0:00:05]} 6. d4 $11 {[%emt 0:00:41]} d6 {[%emt 0:00:04]} 7. O-O {[%emt 0:00:47]} Bb6 {[%emt 0:01:21]} 8. dxe5 {[%emt 0:02:29]} dxe5 {[%emt 0:01:30]} 9. Qb3 {[%emt 0:01:00]} Qf6 {[%emt 0:03:47]} 10. a4 {[%emt 0:02:49]} Na5 11. Qb5+ {[%emt 0:05:08] [#]} ({White should try} 11. Qa2 $1 $15) 11... c6 $1 {[%emt 0:07:32]} 12. Qxe5+ {[%emt 0:02:18]} Qxe5 {[%emt 0:00:06]} 13. Nxe5 {[%emt 0:00:15] [#]} Nxc4 {[%emt 0:00:13]} ({Better is} 13... f6 $1 $17 {[%cal Rf6e5]} 14. Bf7+ Kf8 15. Bxg8 (15. Ba3+ $2 Ne7 $19) 15... Kxg8) 14. Nxc4 {[%emt 0:04:04]} Bc5 {[%emt 0:03:03]} (14... Bc7 $1 $11) 15. Ba3 {[%emt 0:01:23]} Bxa3 {[%emt 0:03:57]} 16. Nbxa3 {[%emt 0:05:20]} Ke7 {[%emt 0:15:22]} 17. e5 Be6 18. Rab1 {[%emt 0:04:22]} b6 {[%emt 0:01:22]} 19. f4 {[%emt 0:03:22]} Nh6 {[%emt 0:06:55]} 20. Nd6 {[%emt 0:13:45]} f5 21. Rfd1 {[%emt 0:02:36]} Rad8 {[%emt 0:03:24]} 22. a5 b5 {[%emt 0:19:42]} 23. c4 {[%emt 0:07:40]} a6 {[%emt 0:01:51]} 24. cxb5 {[%emt 0:01:24]} axb5 {[%emt 0:01:49]} 25. Rdc1 {[%emt 0:03:46]} Bd5 {[%emt 0:00:51]} 26. Nc2 {[%emt 0:05:05]} Ra8 {[%emt 0:04:19]} 27. Ra1 {[%emt 0:02:22]} Rhb8 {[%emt 0:02:22]} 28. Nb4 {[%emt 0:00:41]} Kd7 {[%emt 0:00:24]} 29. Rc5 {[%emt 0:01:42]} Ra7 {[%emt 0:04:02]} 30. a6 {[%emt 0:05:38]} Rb6 {[%emt 0:01:40]} 31. Nxd5 {[%emt 0:02:10]} cxd5 {[%emt 0:00:20]} 32. Nxb5 {[%emt 0:00:41]} Rbxa6 {[%emt 0:03:01]} 33. Rxa6 {[%emt 0:00:38]} Rxa6 {[%emt 0:00:00]} 34. Rc7+ {[%emt 0:01:05]} Kd8 {[%emt 0:00:45]} 35. Rc5 {[%emt 0:02:16]} Ra1+ {[%emt 0:00:48]} 36. Kf2 {[%emt 0:00:33]} Ng4+ {[%emt 0:00:16]} 37. Kg3 {[%emt 0:01:31]} Rd1 {[%emt 0:00:17]} 38. Rc3 {[%emt 0:02:51]} d4 {[%emt 0:01:04]} 39. Ra3 {[%emt 0:05:43]} g5 {[%emt 0:06:24]} 40. Ra8+ {[%emt 0:05:47]} Kd7 {[%emt 0:00:17]} 41. Ra3 {[%emt 0:01:41]} h6 {[%emt 0:02:30]} 42. h3 {[%emt 0:03:46]} Ne3 {[%emt 0:01:55]} 43. e6+ {[%emt 0:01:28]} Ke7 44. fxg5 hxg5 {[%emt 0:02:59]} 45. Ra7+ {[%emt 0:01:12]} Kxe6 {[%emt 0:00:07]} 46. Ra6+ {[%emt 0:00:00]} Ke5 {[%emt 0:00:08]} 47. Kf3 Nd5 {[%emt 0:00:53]} 48. Ra3 {[%emt 0:00:44]} Rb1 {[%emt 0:00:21]} 49. Na7 {[%emt 0:00:13]} Rb6 50. Nc8 {[%emt 0:00:40]} Rc6 {[%emt 0:00:52]} 51. Na7 {[%emt 0:00:27]} Rc5 {[%emt 0:00:35]} 52. Ke2 {[%emt 0:00:41]} Ke4 53. Rg3 {[%emt 0:00:21]} Nc3+ {[%emt 0:01:24]} 54. Kd2 {[%emt 0:00:20]} f4 {[%emt 0:00:25]} 55. Rf3 Rc7 56. Rf1 {[%emt 0:02:11]} Rxa7 {[%emt 0:00:26]} 57. Re1+ {[%emt 0:00:00]} Kd5 {[%emt 0:00:42]} 58. Kd3 {[%emt 0:00:18]} Ne4 {[%emt 0:00:12]} 59. Rb1 {[%emt 0:00:15]} Ra3+ 60. Kc2 Kc4 {[%emt 0:00:40]} 61. Rc1 {[%emt 0:01:26]} 0-1

[Event "Hungary Olimpic Hopes 2022"]
[Site "Tapolca"]
[Date "2022.06.24"]
[Round "4.13"]
[White "Molnar, Dalma Reka"]
[Black "Balazs, Szabina Zoe"]
[Result "0-1"]
[ECO "C11"]
[WhiteElo "1554"]
[BlackElo "1426"]
[Annotator "NA RC"]
[PlyCount "112"]
[EventDate "2022.06.23"]
[EventType "swiss"]
[EventCountry "HUN"]
[SourceTitle "playchess.com"]
[Source "ChessBase"]
[SourceQuality "1"]
[TimeControl "5400+30"]

1. e4 {[%emt 0:00:27]} e6 {[%emt 0:00:06]} 2. Nf3 {[%emt 0:00:10]} d5 {[%emt 0:00:31]} 3. Nc3 {[%emt 0:00:38]} Nf6 {[%emt 0:00:54]} 4. e5 {[%emt 0:00:23]} Nfd7 {[%emt 0:00:16]} 5. d4 {[%emt 0:00:19]} c5 {[%emt 0:00:32]} 6. Ne2 {[%emt 0:00:56]} Nc6 {[%emt 0:01:14]} 7. c3 {[%emt 0:00:22]} Qb6 {[%emt 0:01:53]} 8. h4 {[%emt 0:04:16]} h6 {[%emt 0:02:35]} 9. g3 {[%emt 0:02:20]} Be7 {[%emt 0:01:28]} 10. Bh3 {[%emt 0:03:38]} a6 {[%emt 0:05:15]} 11. O-O {[%emt 0:03:04]} Qc7 {[%emt 0:01:24]} 12. Be3 {[%emt 0:03:31]} b5 {[%emt 0:01:30]} 13. a3 {[%emt 0:01:28]} a5 {[%emt 0:03:02]} 14. Qd2 {[%emt 0:03:15]} a4 {[%emt 0:01:42]} 15. b4 {[%emt 0:02:13]} axb3 {[%emt 0:00:51]} 16. dxc5 Ncxe5 17. Nxe5 {[%emt 0:14:03]} Nxe5 {[%emt 0:04:27]} 18. Qb2 {[%emt 0:02:39]} Nc4 {[%emt 0:00:57]} 19. Qxb3 {[%emt 0:00:43]} Nxe3 {[%emt 0:00:06]} 20. fxe3 {[%emt 0:00:28]} Qxc5 {[%emt 0:00:08]} 21. Rf3 {[%emt 0:03:03]} Bd7 {[%emt 0:00:49]} 22. Raf1 {[%emt 0:05:20]} O-O {[%emt 0:00:28]} 23. Qb2 Qxa3 24. Qd2 {[%emt 0:04:14]} Bc6 {[%emt 0:02:50]} 25. Rf4 {[%emt 0:03:10]} Ra4 {[%emt 0:01:24]} 26. Nd4 Be8 27. R4f3 {[%emt 0:12:39]} Bf6 {[%emt 0:04:35]} 28. h5 {[%emt 0:05:35]} b4 {[%emt 0:00:53]} 29. cxb4 {[%emt 0:01:15]} Qxb4 {[%emt 0:00:06]} 30. Qc2 Bxd4 {[%emt 0:01:33]} 31. exd4 {[%emt 0:01:16]} Qxd4+ {[%emt 0:00:07]} 32. Kh1 {[%emt 0:00:03]} Ra1 {[%emt 0:02:42]} 33. Qe2 {[%emt 0:00:57]} Rxf1+ {[%emt 0:01:39]} 34. Qxf1 {[%emt 0:00:10]} Qe4 {[%emt 0:00:08]} 35. Bg2 {[%emt 0:00:45]} Qg4 {[%emt 0:00:31]} 36. Kg1 {[%emt 0:00:52]} Qxh5 {[%emt 0:00:45]} 37. Rc3 {[%emt 0:01:07]} Qe5 {[%emt 0:01:26]} 38. Rf3 {[%emt 0:00:18]} Bc6 {[%emt 0:01:23]} 39. Qc1 {[%emt 0:00:49]} Ba8 {[%emt 0:01:32]} 40. Rd3 {[%emt 0:01:02]} d4 {[%emt 0:01:01]} 41. Bxa8 {[%emt 0:00:33]} Rxa8 {[%emt 0:00:06]} 42. Qd1 {[%emt 0:00:27]} Rd8 {[%emt 0:01:07]} 43. Kg2 {[%emt 0:00:35]} Qd5+ {[%emt 0:00:29]} 44. Kh2 {[%emt 0:00:12]} e5 {[%emt 0:00:06]} 45. Qe1 {[%emt 0:00:33]} e4 {[%emt 0:00:51]} 46. Rd1 {[%emt 0:00:10]} d3 {[%emt 0:00:30]} 47. Rd2 {[%emt 0:00:21]} Qd4 {[%emt 0:00:15]} 48. Rd1 {[%emt 0:00:15]} e3 {[%emt 0:00:49]} 49. Kh3 {[%emt 0:00:21]} d2 {[%emt 0:00:26]} 50. Qe2 {[%emt 0:00:08]} Qd3 {[%emt 0:00:05]} 51. Qxd3 {[%emt 0:00:32]} Rxd3 {[%emt 0:00:04]} 52. Kg2 {[%emt 0:00:16]} e2 {[%emt 0:00:11]} 53. Ra1 {[%emt 0:00:03]} e1=Q {[%emt 0:00:30]} 54. Rxe1 {[%emt 0:00:05]} dxe1=Q 55. g4 {[%emt 0:00:27]} Qe2+ {[%emt 0:00:23]} 56. Kg1 {[%emt 0:00:07]} Rd1# {[%emt 0:00:03]} 0-1

[Event "Hungary Olimpic Hopes 2022"]
[Site "Tapolca"]
[Date "2022.06.24"]
[Round "4.15"]
[White "Balogh, Gerda"]
[Black "Hangyal, Dora"]
[Result "1-0"]
[ECO "B32"]
[WhiteElo "1531"]
[BlackElo "1163"]
[Annotator "NA RC"]
[PlyCount "113"]
[EventDate "2022.06.23"]
[EventType "swiss"]
[EventCountry "HUN"]
[SourceTitle "playchess.com"]
[Source "ChessBase"]
[SourceQuality "1"]
[TimeControl "5400+30"]

1. e4 {[%emt 0:00:02]} c5 {[%emt 0:00:05]} 2. Nf3 {[%emt 0:00:06]} Nc6 {[%emt 0:00:06]} 3. d4 {[%emt 0:00:12]} cxd4 {[%emt 0:00:07]} 4. Nxd4 {[%emt 0:00:07]} Qb6 {[%emt 0:00:08]} 5. Nb3 {[%emt 0:00:28]} Nf6 {[%emt 0:00:09]} 6. Nc3 {[%emt 0:00:12]} e6 {[%emt 0:00:11]} 7. a3 {[%emt 0:00:09]} Be7 {[%emt 0:00:17]} 8. Be2 {[%emt 0:00:53]} O-O {[%emt 0:00:10]} 9. O-O {[%emt 0:00:07]} a6 {[%emt 0:00:11]} 10. Be3 {[%emt 0:01:23]} Qd8 {[%emt 0:00:09]} 11. Nd4 {[%emt 0:00:11]} d5 {[%emt 0:00:27]} 12. f3 {[%emt 0:00:32]} Bc5 {[%emt 0:00:50]} 13. Qd2 {[%emt 0:01:21]} dxe4 {[%emt 0:00:23]} 14. Rad1 {[%emt 0:00:48]} Qe7 {[%emt 0:03:56]} 15. Nxc6 {[%emt 0:01:41]} bxc6 {[%emt 0:00:26]} 16. fxe4 {[%emt 0:00:22]} e5 {[%emt 0:01:42]} 17. Kh1 {[%emt 0:02:36]} h6 {[%emt 0:01:20]} 18. Bxc5 {[%emt 0:01:27]} Qxc5 {[%emt 0:00:15]} 19. Qd6 {[%emt 0:02:04]} Qb6 {[%emt 0:08:48]} 20. Na4 {[%emt 0:02:56]} Qa7 {[%emt 0:00:25]} 21. Rxf6 {[%emt 0:02:33]} gxf6 {[%emt 0:07:44]} 22. Qxf6 {[%emt 0:00:16]} Qe3 {[%emt 0:00:11]} 23. Bd3 {[%emt 0:00:34]} Qg5 {[%emt 0:02:50]} 24. Qxg5+ {[%emt 0:01:30]} hxg5 {[%emt 0:03:08]} 25. Rf1 {[%emt 0:00:33]} Be6 {[%emt 0:00:44]} 26. Nc5 {[%emt 0:00:21]} Rfe8 {[%emt 0:00:50]} 27. Rf3 {[%emt 0:00:50]} Rab8 {[%emt 0:00:30]} 28. b3 {[%emt 0:01:24]} a5 {[%emt 0:05:04]} 29. a4 {[%emt 0:00:46]} Kf8 {[%emt 0:02:26]} 30. Ba6 {[%emt 0:02:08]} Ke7 {[%emt 0:00:52]} 31. Bb7 {[%emt 0:05:54]} Red8 {[%emt 0:00:41]} 32. h3 {[%emt 0:00:26]} Rd2 {[%emt 0:00:29]} 33. Nxe6 Kxe6 {[%emt 0:00:40]} 34. Bxc6 {[%emt 0:02:01]} f6 {[%emt 0:00:57]} 35. Bd5+ {[%emt 0:01:06]} Ke7 {[%emt 0:00:24]} 36. Rc3 {[%emt 0:00:51]} Kd6 {[%emt 0:02:47]} 37. Rc6+ Ke7 {[%emt 0:00:22]} 38. Re6+ {[%emt 0:01:10]} Kd7 {[%emt 0:00:33]} 39. Rxf6 {[%emt 0:00:20]} Rxc2 {[%emt 0:01:51]} 40. Rf5 {[%emt 0:00:19]} g4 {[%emt 0:02:51]} 41. Rf7+ {[%emt 0:04:02]} Ke8 {[%emt 0:00:58]} 42. Rg7 {[%emt 0:00:20]} gxh3 {[%emt 0:00:33]} 43. Rg8+ {[%emt 0:01:06]} Ke7 {[%emt 0:01:18]} 44. Rxb8 {[%emt 0:00:16]} hxg2+ {[%emt 0:01:04]} 45. Kg1 {[%emt 0:00:09]} Kd6 {[%emt 0:01:49]} 46. Rb5 {[%emt 0:01:39]} Rd2 {[%emt 0:04:21]} 47. Rxa5 {[%emt 0:00:30]} Rb2 {[%emt 0:00:12]} 48. Ra6+ {[%emt 0:00:36]} Kc5 {[%emt 0:00:52]} 49. Rg6 {[%emt 0:00:19]} Rb1+ {[%emt 0:00:27]} 50. Kh2 {[%emt 0:00:08]} g1=Q+ {[%emt 0:00:28]} 51. Rxg1 {[%emt 0:00:13]} Rb2+ {[%emt 0:00:11]} 52. Rg2 {[%emt 0:00:05]} Rb1 {[%emt 0:00:14]} 53. Ra2 {[%emt 0:00:17]} Kb6 {[%emt 0:00:49]} 54. a5+ {[%emt 0:00:17]} Ka7 {[%emt 0:00:17]} 55. a6 {[%emt 0:00:40]} Rc1 {[%emt 0:00:32]} 56. Kg2 {[%emt 0:00:26]} Rc5 {[%emt 0:00:50]} 57. Kg3 1-0

[Event "Hungary Olimpic Hopes 2022"]
[Site "Tapolca"]
[Date "2022.06.24"]
[Round "4.16"]
[White "Toth, Kinga"]
[Black "Kiss, Inez"]
[Result "1-0"]
[ECO "B13"]
[WhiteElo "1179"]
[BlackElo "1469"]
[Annotator "NA RC"]
[PlyCount "87"]
[EventDate "2022.06.23"]
[EventType "swiss"]
[EventCountry "HUN"]
[SourceTitle "playchess.com"]
[Source "ChessBase"]
[SourceQuality "1"]
[TimeControl "5400+30"]

1. e4 {[%emt 0:00:03]} c6 {[%emt 0:00:02]} 2. d4 {[%emt 0:00:11]} d5 {[%emt 0:00:02]} 3. exd5 {[%emt 0:00:17]} cxd5 {[%emt 0:00:04]} 4. Bd3 {[%emt 0:00:13]} Nc6 {[%emt 0:00:03]} 5. c3 {[%emt 0:00:11]} Nf6 {[%emt 0:00:04]} 6. h3 {[%emt 0:00:11]} e5 {[%emt 0:00:05]} 7. dxe5 {[%emt 0:00:15]} Nxe5 {[%emt 0:00:13]} 8. Qe2 {[%emt 0:00:48]} Qe7 {[%emt 0:00:20]} 9. Bb5+ {[%emt 0:02:03]} Bd7 {[%emt 0:00:07]} 10. Bxd7+ {[%emt 0:01:11]} Nexd7 {[%emt 0:00:36]} 11. Be3 {[%emt 0:00:36]} Qe6 {[%emt 0:09:26]} 12. Nf3 {[%emt 0:02:08]} Bc5 {[%emt 0:03:59]} 13. O-O {[%emt 0:00:45]} Bxe3 {[%emt 0:02:41]} 14. fxe3 {[%emt 0:00:15]} O-O {[%emt 0:03:02]} 15. Nbd2 {[%emt 0:02:50]} Rfe8 {[%emt 0:03:45]} 16. Rae1 {[%emt 0:01:23]} Re7 {[%emt 0:09:54]} 17. Nd4 {[%emt 0:13:29]} Qb6 {[%emt 0:05:27]} 18. b4 {[%emt 0:06:51]} Rc8 {[%emt 0:09:06]} 19. Rc1 {[%emt 0:04:26]} Rce8 {[%emt 0:08:53]} 20. Rf3 {[%emt 0:01:51]} Ne5 {[%emt 0:07:44]} 21. Rg3 {[%emt 0:18:55]} g6 {[%emt 0:05:18]} 22. Nf5 Rc7 23. Kh2 {[%emt 0:09:09]} Kh8 {[%emt 0:03:25]} 24. Nh6 {[%emt 0:02:35]} d4 {[%emt 0:07:32]} 25. e4 {[%emt 0:01:15]} dxc3 {[%emt 0:07:45]} 26. Nf3 {[%emt 0:00:58]} Nxf3+ {[%emt 0:01:23]} 27. Qxf3 {[%emt 0:00:25]} Rxe4 {[%emt 0:07:08]} 28. Rxc3 {[%emt 0:00:51]} Re1 {[%emt 0:04:02]} 29. Rc5 {[%emt 0:00:38]} Rxc5 {[%emt 0:00:54]} 30. bxc5 {[%emt 0:00:11]} Qc6 {[%emt 0:01:10]} 31. Qc3 {[%emt 0:02:03]} Re6 {[%emt 0:00:38]} 32. Nxf7+ {[%emt 0:00:39]} Kg8 {[%emt 0:00:21]} 33. Nh6+ {[%emt 0:00:27]} Kg7 {[%emt 0:00:40]} 34. Nf5+ {[%emt 0:00:11]} Kg8 {[%emt 0:00:32]} 35. Qc4 {[%emt 0:00:54]} Kf8 {[%emt 0:00:38]} 36. Nd4 {[%emt 0:00:38]} Re4 {[%emt 0:00:36]} 37. Rf3 {[%emt 0:03:53]} Qc7+ {[%emt 0:00:26]} 38. g3 {[%emt 0:00:55]} Qd8 {[%emt 0:00:49]} 39. Ne6+ {[%emt 0:00:59]} Rxe6 {[%emt 0:00:31]} 40. Qxe6 {[%emt 0:00:16]} Qd2+ {[%emt 0:00:04]} 41. Kg1 {[%emt 0:00:50]} Qd1+ {[%emt 0:00:28]} 42. Kg2 {[%emt 0:00:49]} Qd2+ {[%emt 0:00:52]} 43. Rf2 {[%emt 0:00:23]} Qd4 {[%emt 0:00:40]} 44. Rxf6+ {[%emt 0:00:18]} 1-0

[Event "Hungary Olimpic Hopes 2022"]
[Site "Tapolca"]
[Date "2022.06.24"]
[Round "4.17"]
[White "Hangay, Oliver"]
[Black "Szollosi, Balazs"]
[Result "1-0"]
[ECO "B33"]
[WhiteElo "1627"]
[BlackElo "1294"]
[Annotator "NA COMBH RC"]
[PlyCount "195"]
[EventDate "2022.06.23"]
[EventType "swiss"]
[EventCountry "HUN"]
[SourceTitle "playchess.com"]
[Source "ChessBase"]
[SourceQuality "1"]
[TimeControl "5400+30"]

1. e4 {[%emt 0:30:04]} c5 {[%emt 0:30:11]} 2. Nf3 {[%emt 0:00:06]} Nc6 {[%emt 0:00:09]} 3. d4 {[%emt 0:00:10]} cxd4 {[%emt 0:00:09]} 4. Nxd4 {[%emt 0:00:04]} Nf6 {[%emt 0:00:09]} 5. Nc3 {[%emt 0:00:06]} e5 {[%emt 0:00:07]} 6. Ndb5 {[%emt 0:00:03]} d6 {[%emt 0:00:18]} 7. Bg5 {[%emt 0:00:10]} a6 {[%emt 0:00:52]} 8. Na3 {[%emt 0:00:13]} b5 {[%emt 0:00:17]} 9. Nd5 {[%emt 0:00:09]} Be7 {[%emt 0:02:49]} 10. Bxf6 {[%emt 0:00:12]} Bxf6 {[%emt 0:00:15]} 11. c3 {[%emt 0:00:17]} Bb7 {[%emt 0:00:58]} 12. Nc2 {[%emt 0:02:03]} O-O {[%emt 0:02:43]} 13. Nce3 {[%emt 0:03:37]} Bg5 {[%emt 0:02:35]} 14. Bd3 {[%emt 0:07:53]} Bxe3 {[%emt 0:00:51]} 15. Nxe3 {[%emt 0:00:07]} b4 16. Nf5 bxc3 {[%emt 0:01:01]} 17. bxc3 {[%emt 0:07:23]} Ne7 {[%emt 0:00:07]} 18. Nxe7+ {[%emt 0:05:54]} Qxe7 {[%emt 0:00:52]} 19. O-O {[%emt 0:01:54]} Rfd8 {[%emt 0:02:01]} 20. Qc2 {[%emt 0:01:29]} Rac8 {[%emt 0:02:21]} 21. Rab1 {[%emt 0:03:06]} Rc7 {[%emt 0:04:17]} 22. Rb6 {[%emt 0:04:35]} h6 {[%emt 0:01:37]} 23. Rfb1 {[%emt 0:05:54]} d5 {[%emt 0:01:44]} 24. exd5 {[%emt 0:03:06]} Rxd5 25. Bxa6 {[%emt 0:00:10]} Bxa6 {[%emt 0:04:11]} 26. Rxa6 Rcd7 {[%emt 0:09:55]} 27. Ra8+ {[%emt 0:00:57]} Rd8 {[%emt 0:02:35]} 28. Rbb8 {[%emt 0:00:50]} e4 {[%emt 0:00:30]} 29. Rxd8+ {[%emt 0:00:30]} Rxd8 {[%emt 0:00:12]} 30. Rxd8+ {[%emt 0:00:12]} Qxd8 {[%emt 0:01:45]} 31. Kf1 {[%emt 0:03:15]} Qd5 {[%emt 0:02:55]} 32. c4 {[%emt 0:01:26]} Qe5 {[%emt 0:01:07]} 33. h3 {[%emt 0:01:51]} e3 {[%emt 0:00:10]} 34. fxe3 {[%emt 0:01:17]} Qxe3 35. Qe2 Qf4+ {[%emt 0:02:04]} 36. Kg1 {[%emt 0:00:45]} Qd4+ {[%emt 0:00:32]} 37. Kh2 {[%emt 0:00:13]} Qd6+ {[%emt 0:00:31]} 38. Kh1 {[%emt 0:06:02]} Qa3 39. Qe8+ Kh7 {[%emt 0:00:47]} 40. Qxf7 {[%emt 0:07:20]} Qxa2 {[%emt 0:00:20]} 41. Qd5 Qc2 42. c5 {[%emt 0:01:34]} Qc1+ {[%emt 0:02:00]} 43. Kh2 {[%emt 0:00:05]} Qf4+ {[%emt 0:00:04]} 44. Kg1 Qe3+ {[%emt 0:00:20]} 45. Kf1 {[%emt 0:00:19]} Qc1+ {[%emt 0:00:10]} 46. Ke2 {[%emt 0:00:10]} Qc2+ {[%emt 0:00:36]} 47. Ke3 {[%emt 0:00:22]} Qc1+ 48. Ke4 {[%emt 0:00:16]} Qe1+ {[%emt 0:01:00]} 49. Kd4 {[%emt 0:00:21]} Qf2+ 50. Ke5 Qg3+ {[%emt 0:00:55]} 51. Ke6 {[%emt 0:00:47]} Qg6+ {[%emt 0:00:34]} 52. Kd7 {[%emt 0:00:08]} Qa6 {[%emt 0:01:38]} 53. c6 {[%emt 0:00:23]} Qa4 {[%emt 0:01:22]} 54. Qd6 {[%emt 0:01:49]} Kh8 {[%emt 0:00:59]} 55. Qb8+ {[%emt 0:02:53]} Kh7 {[%emt 0:00:13]} 56. Qb7 {[%emt 0:00:59]} Kh8 {[%emt 0:00:17]} 57. Kc8 {[%emt 0:01:52]} Kh7 {[%emt 0:00:42]} 58. Kb8 {[%emt 0:00:07]} Qf4+ {[%emt 0:00:54]} 59. c7 {[%emt 0:00:18]} Kh8 {[%emt 0:00:24]} 60. Kc8 {[%emt 0:01:00]} Qf5+ {[%emt 0:00:23]} 61. Kd8 {[%emt 0:00:25]} Qf6+ {[%emt 0:00:20]} 62. Kd7 {[%emt 0:00:24]} Qf7+ {[%emt 0:00:51]} 63. Kc6 {[%emt 0:00:37]} Qc4+ {[%emt 0:00:10]} 64. Kb6 {[%emt 0:00:23]} Qb4+ {[%emt 0:00:14]} 65. Ka7 {[%emt 0:00:19]} Qa5+ {[%emt 0:00:45]} 66. Kb8 {[%emt 0:00:18]} Qe5 {[%emt 0:00:09]} 67. g4 {[%emt 0:00:46]} Kh7 {[%emt 0:00:16]} 68. Qb6 {[%emt 0:01:34]} Kh8 {[%emt 0:00:23]} 69. Qb4 {[%emt 0:01:08]} Kh7 {[%emt 0:00:29]} 70. Qb1+ {[%emt 0:00:48]} Kh8 {[%emt 0:00:10]} 71. Qb6 {[%emt 0:00:20]} Kh7 {[%emt 0:00:14]} 72. Kb7 {[%emt 0:00:48]} Qd5+ {[%emt 0:00:20]} 73. Qc6 {[%emt 0:00:33]} Qb3+ {[%emt 0:00:28]} 74. Ka6 {[%emt 0:00:28]} Qa3+ {[%emt 0:00:39]} 75. Kb5 {[%emt 0:00:02]} Qb3+ {[%emt 0:00:36]} 76. Kc5 {[%emt 0:00:05]} Qe3+ {[%emt 0:00:33]} 77. Kd6 {[%emt 0:00:04]} Qd4+ {[%emt 0:00:51]} 78. Ke7 {[%emt 0:00:25]} Qe5+ {[%emt 0:00:32]} 79. Kd7 {[%emt 0:00:45]} Qd4+ {[%emt 0:00:20]} 80. Kc8 {[%emt 0:00:09]} Qa7 {[%emt 0:00:48]} 81. Qe4+ {[%emt 0:00:41]} Kh8 {[%emt 0:00:29]} 82. Qd5 {[%emt 0:00:59]} Kh7 {[%emt 0:00:18]} 83. Kd8 {[%emt 0:00:18]} Qb6 {[%emt 0:00:13]} 84. h4 {[%emt 0:00:27]} Kh8 {[%emt 0:00:11]} 85. g5 {[%emt 0:00:32]} hxg5 {[%emt 0:00:45]} 86. hxg5 {[%emt 0:00:05]} Kh7 {[%emt 0:00:27]} 87. Qd7 {[%emt 0:00:47]} Kh8 {[%emt 0:00:41]} 88. Qe7 {[%emt 0:01:06]} Kh7 {[%emt 0:00:22]} 89. Qe4+ {[%emt 0:00:57]} Kh8 {[%emt 0:00:16]} 90. Qe5 {[%emt 0:00:17]} Kh7 {[%emt 0:00:21]} 91. Kd7 {[%emt 0:00:06]} Qb7 {[%emt 0:00:19]} 92. Qf5+ {[%emt 0:00:31]} g6 {[%emt 0:02:00]} 93. Qf7+ {[%emt 0:00:39]} Kh8 {[%emt 0:00:17]} 94. Kd8 {[%emt 0:00:09]} Qc8+ {[%emt 0:01:22]} 95. Ke7 {[%emt 0:00:22]} Qxc7+ {[%emt 0:00:12]} 96. Kf6 {[%emt 0:00:16]} Qf4+ {[%emt 0:00:57]} 97. Kxg6 {[%emt 0:00:01]} Qxg5+ {[%emt 0:00:15] Check Result:?ev?} 98. Kxg5 {[%emt 0:00:01]} 1-0

[Event "Hungary Olimpic Hopes 2022"]
[Site "Tapolca"]
[Date "2022.06.24"]
[Round "4.18"]
[White "Meszaros-Csonka, David"]
[Black "Minga-Nagy, Abel Inti"]
[Result "0-1"]
[ECO "A43"]
[WhiteElo "1413"]
[BlackElo "1364"]
[Annotator "NA RC"]
[PlyCount "94"]
[EventDate "2022.06.23"]
[EventType "swiss"]
[EventCountry "HUN"]
[SourceTitle "playchess.com"]
[Source "ChessBase"]
[SourceQuality "1"]
[TimeControl "5400+30"]

1. d4 {[%emt 0:30:07]} c5 {[%emt 0:30:05]} 2. c3 {[%emt 0:00:08]} cxd4 {[%emt 0:00:06]} 3. cxd4 {[%emt 0:00:08]} d5 {[%emt 0:00:06]} 4. Nc3 {[%emt 0:00:09]} Nf6 {[%emt 0:00:07]} 5. Nf3 {[%emt 0:00:42]} Bf5 {[%emt 0:00:23]} 6. Qb3 {[%emt 0:02:13]} Qb6 {[%emt 0:01:51]} 7. Nxd5 {[%emt 0:06:15]} Qxb3 {[%emt 0:00:18]} 8. Nxf6+ {[%emt 0:00:09]} exf6 {[%emt 0:00:12]} 9. axb3 {[%emt 0:00:08]} Bc2 {[%emt 0:00:19]} 10. Bd2 {[%emt 0:02:14]} Bxb3 {[%emt 0:01:00]} 11. e3 {[%emt 0:02:23]} Bd6 {[%emt 0:02:05]} 12. Bd3 {[%emt 0:01:56]} O-O {[%emt 0:01:08]} 13. O-O {[%emt 0:01:06]} Nc6 14. Rfc1 {[%emt 0:05:17]} Rfe8 {[%emt 0:02:47]} 15. Bc4 {[%emt 0:01:49]} Bxc4 {[%emt 0:02:05]} 16. Rxc4 {[%emt 0:00:00]} Rac8 {[%emt 0:01:21]} 17. Rac1 {[%emt 0:01:06]} Ne7 {[%emt 0:01:33]} 18. Rxc8 {[%emt 0:03:35]} Rxc8 {[%emt 0:00:14]} 19. Rxc8+ {[%emt 0:00:04]} Nxc8 {[%emt 0:00:09]} 20. e4 {[%emt 0:00:20]} Nb6 {[%emt 0:00:52]} 21. b3 {[%emt 0:01:07]} Kf8 {[%emt 0:00:31]} 22. Kf1 {[%emt 0:00:05]} Ke7 {[%emt 0:00:14]} 23. Ke2 {[%emt 0:01:54]} Nd7 {[%emt 0:00:24]} 24. Kd3 {[%emt 0:01:09]} b5 {[%emt 0:00:36]} 25. h4 Nf8 26. g3 {[%emt 0:05:25]} h5 {[%emt 0:01:05]} 27. Nh2 {[%emt 0:01:16]} Ke6 {[%emt 0:00:30]} 28. f4 {[%emt 0:02:00]} f5 {[%emt 0:00:06]} 29. d5+ {[%emt 0:01:56]} Ke7 {[%emt 0:00:42]} 30. e5 {[%emt 0:04:04]} Bc5 {[%emt 0:00:42]} 31. Be3 {[%emt 0:01:45]} Bxe3 {[%emt 0:00:34]} 32. Kxe3 {[%emt 0:00:07]} Nd7 {[%emt 0:00:25]} 33. Kd4 {[%emt 0:00:38]} a5 {[%emt 0:00:57]} 34. Nf3 {[%emt 0:01:29]} a4 {[%emt 0:00:09]} 35. bxa4 {[%emt 0:00:55]} bxa4 36. d6+ {[%emt 0:02:17]} Ke8 {[%emt 0:01:44]} 37. Kc3 {[%emt 0:06:18]} Nc5 38. Kb4 {[%emt 0:01:12]} Ne4 {[%emt 0:01:25]} 39. Kxa4 {[%emt 0:00:37]} Nxg3 {[%emt 0:00:12]} 40. Nd4 {[%emt 0:00:38]} Kd7 {[%emt 0:00:47]} 41. Kb5 {[%emt 0:01:00]} g6 {[%emt 0:00:50]} 42. Nf3 {[%emt 0:03:12]} Ne2 {[%emt 0:00:29]} 43. Ng5 {[%emt 0:00:36]} Nxf4 {[%emt 0:00:11]} 44. Nxf7 {[%emt 0:00:43]} Ne6 {[%emt 0:02:01]} 45. Nh8 {[%emt 0:03:27]} g5 46. Nf7 {[%emt 0:02:52]} gxh4 {[%emt 0:01:35]} 47. Nh6 {[%emt 0:00:15]} Ng7 {[%emt 0:00:16]} 0-1